bitfinex/quotes_SOLUSD_20251013
["timestamp","ask_amount","ask_price","bid_price","bid_amount"]
[1760361240741,6.02690113,191.91,191.87,20.8]
[1760361241043,5.91297521,191.88,191.83,14.67289343]
[1760361241218,5.91297521,191.86,191.8,0.25]
[1760361241426,5.91297521,191.83,191.8,5.21375686]
[1760361241631,5.91297521,191.85,191.79,26.01398506]
[1760361241850,5.91297521,191.85,191.8,9.46]
[1760361242053,5.91297521,191.85,191.79,26.01398506]
[1760361242342,5.91297521,191.86,191.79,39.04907552]
[1760361242526,1.37144882,191.88,191.79,18.24907552]
[1760361242733,5.91297521,191.83,191.78,5.46426987]
[1760361242943,5.91297521,191.83,191.78,14.67426987]
[1760361243143,5.91297521,191.81,191.77,5.21457996]
[1760361243324,5.91297521,191.8,191.76,5.21480209]
[1760361243648,5.91297521,191.79,191.76,5.21480209]
[1760361243837,0.65172054,191.8,191.75,0.1]
[1760361244037,5.91297521,191.78,191.75,0.1]
[1760361244351,5.91297521,191.76,191.75,0.1]
[1760361245429,6.63297521,191.76,191.75,0.1]
[1760361245631,0.72,191.76,191.75,0.1]
[1760361245951,6.63297521,191.76,191.75,0.1]
[1760361246245,11.8478271,191.76,191.75,0.1]
[1760361246940,6.63297521,191.76,191.67,20.8]
[1760361247124,5.91297521,191.7,191.67,9.46]
[1760361247324,5.91297521,191.7,191.65,10.87647521]
[1760361247545,5.93570319,191.73,191.65,14.67780296]
[1760361247546,5.91297521,191.69,191.65,14.67780296]
[1760361247841,5.91297521,191.68,191.65,9.46]
[1760361248022,5.91297521,191.68,191.65,14.67783379]
[1760361248225,5.91297521,191.67,191.63,0.1]
[1760361248428,5.91297521,191.65,191.63,5.31832224]
[1760361248726,1.37199248,191.72,191.64,0.35]
[1760361248928,0.72,191.75,191.64,11.22647521]
[1760361249236,26.71297521,191.73,191.64,11.22647521]
[1760361249549,10.91297521,191.76,191.66,10.87647521]
[1760361249846,10.91297521,191.76,191.67,0.35]
[1760361250024,5.0,191.76,191.67,0.35]
[1760361250219,5.0,191.76,191.7,10.87647521]
[1760361250425,5.0,191.76,191.7,11.22647521]
[1760361250627,5.0,191.76,191.7,20.33647521]
[1760361250825,5.0,191.76,191.74,10.87647521]
[1760361251336,5.0,191.76,191.73,20.8]
[1760361251337,5.0,191.76,191.73,5.21566786]
[1760361252749,5.0,191.76,191.74,11.22647521]
[1760361253142,5.0,191.76,191.72,26.01590976]
[1760361253343,5.0,191.76,191.69,9.81]
[1760361253645,11.63297521,191.76,191.7,10.87647521]
[1760361253848,5.91297521,191.75,191.7,10.87647521]
[1760361254244,5.72,191.76,191.7,10.87647521]
[1760361254245,11.63297521,191.76,191.7,10.87647521]
[1760361254444,5.91297521,191.75,191.7,10.87647521]
[1760361255353,0.72,191.74,191.69,9.46]
[1760361255552,5.91297521,191.72,191.65,5.21784503]
[1760361255853,5.91297521,191.72,191.65,27.7224576]
[1760361256531,5.91297521,191.75,191.66,20.68647521]
[1760361256730,5.91297521,191.71,191.65,18.2624576]
[1760361257352,5.91297521,191.71,191.65,5.21784503]
[1760361257649,5.91297521,191.71,191.64,20.8]
[1760361257650,5.91297521,191.68,191.64,5.21808473]
[1760361258064,0.72,191.68,191.64,5.21808473]
[1760361258232,6.63297521,191.68,191.64,5.21808473]
[1760361258433,6.63297521,191.68,191.63,5.3183667]
[1760361258756,6.01784774,191.65,191.63,0.1]
[1760361259276,6.73784774,191.65,191.63,0.1]
[1760361259634,6.63297521,191.64,191.63,0.1]
[1760361260736,0.10487253,191.65,191.63,0.1]
[1760361261154,6.73784774,191.65,191.63,0.1]
[1760361261361,6.63297521,191.64,191.63,0.1]
[1760361262937,11.85109251,191.64,191.63,0.1]
[1760361263865,0.72,191.64,191.63,0.1]
[1760361264034,6.63297521,191.64,191.63,0.1]
[1760361264461,6.63297521,191.64,191.55,2.72069257]
[1760361264462,11.85109251,191.64,191.55,2.72069257]
[1760361264658,7.28527391,191.63,191.62,10.2407438]
[1760361264869,1.3722987,191.63,191.62,10.2407438]
[1760361265165,7.28527391,191.63,191.62,10.2407438]
[1760361265543,12.50366351,191.63,191.62,10.2407438]
[1760361265947,6.5906883,191.63,191.62,10.2407438]
[1760361266150,12.50366351,191.63,191.62,10.2407438]
[1760361268063,6.5906883,191.63,191.62,10.2407438]
[1760361268261,28.38013872,191.63,191.62,10.2407438]
[1760361269665,11.5906883,191.63,191.62,10.2407438]
[1760361269860,17.50366351,191.63,191.62,10.2407438]
[1760361270064,17.50366351,191.63,191.62,19.7007438]
[1760361270365,17.50366351,191.63,191.62,10.2407438]
[1760361270563,41.42611273,191.63,191.52,5.22118451]
[1760361270767,5.91297521,191.55,191.52,5.88118451]
[1760361270972,5.91297521,191.55,191.53,10.12]
[1760361271158,5.91297521,191.58,191.54,0.66]
[1760361271666,0.65233274,191.62,191.55,10.12]
[1760361271858,0.65233274,191.62,191.56,0.66]
[1760361272064,15.91297521,191.63,191.57,9.46]
[1760361272243,15.91297521,191.63,191.58,0.66]
[1760361272446,15.91297521,191.63,191.59,9.46]
[1760361272661,15.91297521,191.63,191.6,0.66]
[1760361272874,15.91297521,191.63,191.61,9.46]
[1760361273260,15.91297521,191.63,191.62,9.46]
[1760361273458,10.0,191.63,191.62,9.46]
[1760361273663,15.91297521,191.63,191.62,9.46]
[1760361273972,10.0,191.63,191.62,0.66]
[1760361274568,10.0,191.63,191.62,10.12]
[1760361274569,8.83,191.63,191.62,10.12]
[1760361274869,5.0,191.64,191.63,10.87647521]
[1760361275189,5.0,191.64,191.61,18.26627002]
[1760361275547,5.0,191.64,191.63,10.87647521]
[1760361275750,0.10487253,191.65,191.63,10.87647521]
[1760361275971,0.10487253,191.65,191.64,25.55459251]
[1760361276558,0.10487253,191.65,191.64,16.09459251]
[1760361277169,0.10487253,191.65,191.64,25.55459251]
[1760361277756,0.10487253,191.65,191.62,5.21841074]
[1760361278059,0.10487253,191.65,191.62,18.26506557]
[1760361278268,0.10487253,191.65,191.63,10.87647521]
[1760361278678,0.09755697,191.64,191.63,10.87647521]
[1760361278860,0.09755697,191.64,191.63,20.33647521]
[1760361279177,1e-08,191.65,191.63,41.13647521]
[1760361279358,5.20773747,191.68,191.65,31.67647521]
[1760361279674,5.20773747,191.68,191.67,16.09377577]
[1760361280078,5.10303791,191.68,191.67,5.21730056]
[1760361280279,5.10303791,191.68,191.62,26.09330967]
[1760361280280,5.10303791,191.68,191.64,5.2181173]
[1760361280587,5.10303791,191.68,191.63,5.21838693]
[1760361280588,11.73601312,191.68,191.63,5.21838693]
[1760361280764,5.91297521,191.67,191.63,5.21838693]
[1760361281693,5.91297521,191.67,191.59,10.87647521]
[1760361281694,5.10303791,191.68,191.6,5.21920668]
[1760361281856,16.01601312,191.68,191.6,5.21920668]
[1760361282060,5.91297521,191.66,191.61,10.87647521]
[1760361282588,16.73601312,191.68,191.61,10.87647521]
[1760361283175,5.91297521,191.67,191.61,10.87647521]
[1760361283460,8.76798637,191.67,191.61,10.87647521]
[1760361283790,10.10303791,191.68,191.62,5.21866193]
[1760361283972,10.10303791,191.68,191.63,10.87647521]
[1760361285364,10.78303791,191.68,191.63,10.87647521]
[1760361285984,10.78303791,191.68,191.64,5.2181173]
[1760361286194,10.76303791,191.68,191.64,18.26341055]
[1760361286493,10.10303791,191.68,191.64,18.26341055]
[1760361287262,10.10303791,191.68,191.65,10.87647521]
[1760361287964,10.10303791,191.68,191.66,5.21757278]
[1760361288161,10.10303791,191.68,191.65,29.138908]
[1760361288794,10.10303791,191.68,191.67,31.67647521]
[1760361289766,0.10713529,191.69,191.67,31.67647521]
[1760361289979,0.10713529,191.69,191.68,5.21702838]
[1760361290185,0.11387125,191.7,191.68,16.09350359]
[1760361290673,0.11387125,191.7,191.68,36.89350359]
[1760361290865,2.72321562,191.81,191.68,36.89350359]
[1760361291069,0.66,191.82,191.72,10.87647521]
[1760361291493,0.66,191.82,191.71,30.26]
[1760361291494,0.66,191.78,191.71,30.26]
[1760361291799,5.66,191.76,191.72,10.87647521]
[1760361292088,5.66,191.76,191.73,5.21566786]
[1760361292391,5.0,191.76,191.73,18.25483752]
[1760361292596,5.0,191.83,191.74,10.87647521]
[1760361292890,5.0,191.83,191.77,20.8]
[1760361293095,5.0,191.83,191.74,10.87647521]
[1760361293096,8.76798637,191.8,191.74,10.87647521]
[1760361293297,0.66,191.8,191.74,10.87647521]
[1760361293596,0.66,191.82,191.74,10.87647521]
[1760361294005,0.66,191.82,191.76,10.87647521]
[1760361294212,5.0,191.83,191.76,10.87647521]
[1760361294376,5.0,191.83,191.8,10.87647521]
[1760361294578,0.2,191.88,191.83,31.67647521]
[1760361294990,0.66,191.87,191.75,44.32855278]
[1760361295195,0.66,191.86,191.79,10.87647521]
[1760361295687,8.96798637,191.88,191.75,18.25293349]
[1760361295688,9.42798637,191.85,191.75,18.25293349]
[1760361295873,0.66,191.84,191.76,10.87647521]
[1760361296181,0.66,191.84,191.78,10.87647521]
[1760361296388,0.66,191.87,191.78,10.87647521]
[1760361297582,8.96798637,191.88,191.78,10.87647521]
[1760361297583,9.42798637,191.86,191.78,10.87647521]
[1760361297796,0.66,191.86,191.78,10.87647521]
[1760361297996,8.96798637,191.88,191.8,10.87647521]
[1760361298213,0.2,191.88,191.8,31.67647521]
[1760361298424,0.2,191.88,191.83,8.74798787]
[1760361298613,0.2,191.88,191.79,18.24912664]
[1760361298614,0.10244995,191.81,191.79,18.24912664]
[1760361298923,0.10244995,191.81,191.79,26.99711451]
[1760361299312,0.76244995,191.81,191.78,8.74798787]
[1760361299495,0.76244995,191.81,191.77,45.63883494]
[1760361299690,0.10244995,191.81,191.77,13.96235973]
[1760361299895,0.66,191.8,191.77,13.96235973]
[1760361300095,0.10244995,191.81,191.77,13.96235973]
[1760361300298,0.76244995,191.81,191.77,13.96235973]
[1760361300504,0.10244995,191.81,191.77,13.96235973]
[1760361300731,0.76244995,191.81,191.77,13.96235973]
[1760361300898,0.66,191.8,191.77,5.21437186]
[1760361301101,0.66,191.79,191.73,8.74798787]
[1760361301296,0.66,191.79,191.7,10.87647521]
[1760361301297,9.40798787,191.78,191.7,10.87647521]
[1760361301606,10.05981036,191.77,191.71,5.21617778]
[1760361301803,0.66,191.76,191.71,5.21617778]
[1760361301994,0.66,191.75,191.71,5.21617778]
[1760361302195,8.74798787,191.77,191.7,24.84094716]
[1760361302514,0.66,191.74,191.7,24.84094716]
[1760361302717,8.74798787,191.78,191.71,8.74798787]
[1760361302938,0.66,191.77,191.71,8.74798787]
[1760361303214,0.66,191.77,191.72,8.74798787]
[1760361303717,0.66,191.76,191.71,8.74798787]
[1760361304134,0.66,191.76,191.72,5.21593991]
[1760361304298,0.66,191.78,191.73,8.74798787]
[1760361304500,0.76244995,191.81,191.75,8.74798787]
[1760361304726,0.66,191.8,191.74,8.74798787]
[1760361304902,8.74798787,191.77,191.74,79.2]
[1760361305104,0.66,191.76,191.74,79.2]
[1760361305411,0.66,191.75,191.74,79.2]
[1760361306428,14.62311172,191.75,191.65,8.74798787]
[1760361306721,8.74798787,191.71,191.65,8.74798787]
[1760361306927,0.66,191.71,191.66,8.74798787]
[1760361307114,20.8,191.8,191.66,8.74798787]
[1760361307115,0.66,191.76,191.69,8.74798787]
[1760361307427,0.66,191.76,191.66,20.8]
[1760361307428,9.40798787,191.75,191.68,8.74798787]
[1760361307800,0.66,191.74,191.67,10.87647521]
[1760361308000,0.66,191.74,191.68,8.74798787]
[1760361308227,9.40798787,191.74,191.68,5.21702838]
[1760361308609,8.74798787,191.75,191.68,27.0075872]
[1760361308815,0.65185648,191.76,191.68,27.0075872]
[1760361308816,9.40798787,191.76,191.69,8.74798787]
[1760361309232,1.31175452,191.79,191.72,8.74798787]
[1760361309406,0.66,191.79,191.74,8.74798787]
[1760361309605,0.66,191.79,191.75,8.74798787]
[1760361309919,0.66,191.78,191.7,31.67647521]
[1760361310123,0.66,191.78,191.73,8.74798787]
[1760361310422,0.66,191.78,191.74,5.21539584]
[1760361311134,0.66,191.78,191.72,10.87647521]
[1760361311313,0.66,191.78,191.73,8.74798787]
[1760361311629,0.10244995,191.81,191.71,18.25674194]
[1760361311630,0.76244995,191.81,191.75,8.74798787]
[1760361311803,0.76244995,191.81,191.76,8.74798787]
[1760361312123,0.76244995,191.81,191.75,8.74798787]
[1760361312304,9.51043782,191.81,191.74,8.74798787]
[1760361312508,0.76244995,191.81,191.75,13.96311172]
[1760361313017,0.66,191.8,191.75,13.96311172]
[1760361314323,0.10244995,191.81,191.79,8.74798787]
[1760361314527,0.10244995,191.81,191.8,8.74798787]
[1760361314715,0.10244995,191.81,191.8,13.9617522]
[1760361315116,0.76244995,191.81,191.76,13.96283976]
[1760361315316,0.76244995,191.81,191.76,5.21485189]
[1760361315727,0.76244995,191.81,191.76,13.96283976]
[1760361316513,0.76244995,191.81,191.77,8.74798787]
[1760361316848,0.76244995,191.81,191.78,8.74798787]
[1760361317330,0.10244995,191.81,191.8,8.74798787]
[1760361317515,0.10244995,191.81,191.8,19.62446308]
[1760361318410,0.10244995,191.81,191.8,24.83822741]
[1760361318612,0.19835335,191.81,191.8,24.83822741]
[1760361318808,1e-08,191.82,191.81,10.87647521]
[1760361319027,1e-08,191.83,191.81,19.62446308]
[1760361319209,5.21054047,191.9,191.85,20.8]
[1760361319408,5.21054047,191.9,191.85,29.54798787]
[1760361319609,5.21054047,191.9,191.85,19.62446308]
[1760361320331,0.11384655,191.86,191.85,19.62446308]
[1760361320519,0.11384655,191.86,191.85,24.8368686]
[1760361321036,0.10383157,191.87,191.86,19.62446308]
[1760361321330,0.30417504,191.88,191.86,40.42446308]
[1760361321520,0.30417504,191.88,191.87,8.74798787]
[1760361322437,0.30417504,191.88,191.87,13.95985006]
[1760361323136,0.30417504,191.88,191.87,5.21186219]
[1760361323314,0.30417504,191.88,191.87,24.83632527]
[1760361323510,0.30417504,191.88,191.87,16.0883374]
[1760361323814,0.30417504,191.88,191.87,19.62446308]
[1760361324022,0.30417504,191.88,191.85,29.54798787]
[1760361324214,0.96417504,191.88,191.85,8.74798787]
[1760361324533,0.96417504,191.88,191.85,13.96038434]
[1760361325331,0.30417504,191.88,191.87,8.74798787]
[1760361326429,0.30417504,191.88,191.87,13.95985006]
[1760361326945,5.096884,191.9,191.88,10.87647521]
[1760361327240,0.2,191.95,191.92,20.8]
[1760361327430,0.2,191.95,191.94,8.74798787]
[1760361327624,20.0,191.96,191.95,10.87647521]
[1760361327937,20.0,191.96,191.95,40.42446308]
[1760361328240,5.0,192.04,191.95,40.42446308]
[1760361328436,5.0,192.04,192.03,13.95550752]
[1760361328816,0.66,192.12,192.03,37.85078187]
[1760361329025,0.66,192.12,192.09,8.74798787]
[1760361329417,0.66,192.11,192.03,5.20751965]
[1760361329614,8.74798787,192.07,191.98,10.87647521]
[1760361329922,0.66,192.06,192.01,8.74798787]
[1760361330135,0.66,192.05,191.98,10.87647521]
[1760361330331,9.40798787,192.05,191.99,20.8]
[1760361330533,0.66,192.05,192.0,8.74798787]
[1760361330725,0.66,192.04,192.0,8.74798787]
[1760361331240,0.66,192.03,191.99,5.20843109]
[1760361331421,0.66,192.03,192.0,8.74798787]
[1760361331616,0.66,192.05,192.0,8.74798787]
[1760361331851,0.66,192.04,192.0,8.74798787]
[1760361332846,0.66,192.04,192.01,5.20806208]
[1760361333223,0.66,192.03,191.98,5.20873315]
[1760361333426,0.66,192.03,191.99,19.62446308]
[1760361334449,0.66,192.03,192.0,26.00833333]
[1760361334650,0.65073663,192.09,192.0,26.00833333]
[1760361334651,5.85689667,192.09,192.0,34.7563212]
[1760361334953,0.66,192.06,192.0,34.7563212]
[1760361336431,0.66,192.06,192.0,29.54798787]
[1760361336636,9.40798787,192.06,192.0,34.75627661]
[1760361336839,0.66,192.06,192.01,8.74798787]
[1760361337433,0.66,192.12,192.05,8.74798787]
[1760361337634,0.66,192.12,192.06,8.74798787]
[1760361337839,0.66,192.12,192.06,13.95442397]
[1760361338551,0.66,192.12,192.08,8.74798787]
[1760361338739,0.10090308,192.09,192.07,19.62446308]
[1760361339236,0.10090308,192.09,192.06,10.87647521]
[1760361339561,0.10090308,192.09,192.07,8.74798787]
[1760361339928,0.10090308,192.09,192.08,24.83062717]
[1760361340649,0.09671397,192.1,192.08,24.83062717]
[1760361340847,0.09671397,192.1,192.09,19.62446308]
[1760361341053,0.09829293,192.11,192.1,31.67647521]
[1760361341353,0.09829293,192.11,192.1,40.42446308]
[1760361341549,0.09829293,192.11,192.1,31.67647521]
[1760361341856,0.09829293,192.11,192.1,40.42446308]
[1760361342051,0.09829293,192.11,192.1,45.63008515]
[1760361342239,0.09829293,192.11,192.1,36.88209728]
[1760361342434,0.09829293,192.11,192.1,20.8]
[1760361342435,0.81829293,192.11,192.1,20.8]
[1760361342645,9.5662808,192.11,192.0,10.87647521]
[1760361342834,0.81829293,192.11,192.06,19.62446308]
[1760361343041,0.09829293,192.11,192.06,19.62446308]
[1760361343254,0.72,192.1,192.06,19.62446308]
[1760361343435,0.72,192.09,192.06,10.87647521]
[1760361343637,0.72,192.08,192.03,19.62446308]
[1760361344147,21.52,192.07,192.04,5.20724848]
[1760361344342,21.52,192.07,192.03,10.87647521]
[1760361344343,20.8,192.07,192.03,10.87647521]
[1760361344548,20.8,192.05,192.0,16.08476415]
[1760361344747,0.72,192.04,191.95,13.01882987]
[1760361344944,0.72,192.06,191.96,18.2329286]
[1760361345147,20.8,192.07,191.96,18.2329286]
[1760361345354,0.72,192.06,191.97,10.87647521]
[1760361345555,20.8,192.04,191.97,10.87647521]
[1760361345741,0.72,192.03,191.97,10.87647521]
[1760361345934,0.72,192.03,191.98,5.20887592]
[1760361346340,20.8,192.03,191.99,10.87647521]
[1760361346841,21.46,192.06,191.99,10.87647521]
[1760361347237,20.8,192.06,191.99,10.87647521]
[1760361347536,0.10560577,192.12,191.99,30.8764752]
[1760361347742,20.89829293,192.11,192.0,9.44]
[1760361347944,20.8,192.1,192.02,10.87647521]
[1760361348152,0.09829293,192.11,192.02,10.87647521]
[1760361348352,20.8,192.1,192.02,10.87647521]
[1760361348546,0.09829293,192.11,192.02,10.87647521]
[1760361348743,21.55829293,192.11,192.02,10.87647521]
[1760361349058,0.75829293,192.11,192.02,10.87647521]
[1760361349443,0.09829293,192.11,192.02,10.87647521]
[1760361349653,20.89829293,192.11,192.02,10.87647521]
[1760361349845,20.8,192.1,192.02,10.87647521]
[1760361350148,20.8,192.1,192.04,10.87647521]
[1760361350340,26.80500549,192.11,192.04,10.87647521]
[1760361350545,27.36671256,192.1,192.04,10.87647521]
[1760361350858,5.90671256,192.08,192.03,5.20751965]
[1760361351039,6.56671256,192.07,192.01,16.08427131]
[1760361351248,5.90671256,192.05,192.01,10.87647521]
[1760361351556,20.8,192.06,191.99,10.87647521]
[1760361352033,20.8,192.06,191.96,5.20941862]
[1760361352034,20.8,192.06,192.01,10.87647521]
[1760361352631,0.66,192.08,192.01,10.87647521]
[1760361352863,20.8,192.07,192.01,10.87647521]
[1760361353560,0.66,192.06,192.01,10.87647521]
[1760361353766,0.66,192.05,192.01,10.87647521]
[1760361354140,0.66,192.05,192.02,5.20779085]
[1760361355560,20.8,192.09,192.03,10.87647521]
[1760361355742,21.55829293,192.11,192.03,10.87647521]
[1760361355938,27.46500549,192.11,192.03,10.87647521]
[1760361356142,20.8,192.1,192.05,10.87647521]
[1760361356350,21.46,192.1,192.05,10.87647521]
[1760361356558,21.46,192.1,192.04,5.20724848]
[1760361356559,6.56671256,192.09,192.04,5.20724848]
[1760361356758,0.66,192.08,192.04,5.20724848]
[1760361356957,5.90671256,192.08,192.04,5.20724848]
[1760361357157,0.66,192.07,192.04,5.20724848]
[1760361357356,0.66,192.06,192.04,5.20724848]
[1760361357553,5.90671256,192.08,192.04,5.20724848]
[1760361357554,0.66,192.07,192.04,5.20724848]
[1760361357861,20.8,192.1,192.04,18.2253697]
[1760361358242,20.8,192.1,192.04,13.01812122]
[1760361358644,0.0965549,192.06,192.05,10.87647521]
[1760361359667,0.0965549,192.06,192.04,10.87647521]
[1760361360240,0.0965549,192.06,192.05,16.08345255]
[1760361360445,0.11117422,192.07,192.05,16.08345255]
[1760361360446,0.11117422,192.07,192.06,10.87647521]
[1760361360667,0.10233797,192.08,192.06,10.87647521]
[1760361360970,0.11438672,192.14,192.08,10.87647521]
[1760361361165,0.11438672,192.14,192.08,9.44]
[1760361361550,0.11438672,192.14,192.06,10.87647521]
[1760361362150,0.11438672,192.14,192.08,10.87647521]
[1760361362347,0.11438672,192.14,192.1,10.87647521]
[1760361363453,0.11438672,192.14,192.12,10.87647521]
[1760361363659,0.2,192.16,192.12,10.87647521]
[1760361364357,0.66,192.21,192.14,10.87647521]
[1760361364560,0.66,192.21,192.11,176.74548435]
[1760361364760,0.2,192.24,192.12,10.87647521]
[1760361365345,21.46,192.23,192.12,10.87647521]
[1760361365546,20.8,192.22,192.13,9.42]
[1760361365774,0.66,192.21,192.13,9.42]
[1760361366368,0.66,192.21,192.14,10.87647521]
[1760361366678,0.66,192.2,192.14,10.87647521]
[1760361368159,20.8,192.23,192.14,10.87647521]
[1760361368378,0.86,192.24,192.16,10.87647521]
[1760361368952,0.2,192.24,192.16,10.87647521]
[1760361369171,0.2,192.24,192.18,10.87647521]
[1760361369475,0.2,192.24,192.2,10.87647521]
[1760361369861,0.2,192.24,192.16,10.87647521]
[1760361370080,0.2,192.24,192.18,10.87647521]
[1760361370373,0.2,192.24,192.21,18.20925029]
[1760361370970,0.2,192.24,192.22,10.87647521]
[1760361372256,0.2,192.24,192.23,16.07857685]
[1760361372679,0.2,192.3,192.24,10.87647521]
[1760361372961,0.2,192.3,192.26,10.87647521]
[1760361373381,0.2,192.3,192.25,10.87647521]
[1760361374675,0.2,192.3,192.27,10.87647521]
[1760361375354,0.7,192.29,192.17,15.62215221]
[1760361375556,0.7,192.28,192.19,55.10354216]
[1760361375757,0.7,192.28,192.19,64.52354216]
[1760361376051,0.7,192.28,192.21,10.87647521]
[1760361376677,0.7,192.27,192.21,5.20264294]
[1760361376860,0.7,192.27,192.21,18.20925029]
[1760361377488,0.2,192.3,192.21,18.20925029]
[1760361377489,0.2,192.3,192.22,10.87647521]
[1760361377663,0.2,192.3,192.24,10.87647521]
[1760361377981,0.2,192.3,192.24,20.29647521]
[1760361378185,0.2,192.3,192.24,9.42]
[1760361378586,0.11382172,192.25,192.22,10.87647521]
[1760361378756,0.11209251,192.27,192.22,10.87647521]
[1760361378757,0.11209251,192.27,192.25,5.20156046]
[1760361378957,0.11209251,192.27,192.26,10.87647521]
[1760361379357,0.81209251,192.27,192.21,10.87647521]
[1760361379582,0.7,192.26,192.2,5.20291363]
[1760361379770,5.90671256,192.22,192.18,5.20321486]
[1760361379967,5.90671256,192.23,192.18,5.20321486]
[1760361380280,20.8,192.24,192.19,10.87647521]
[1760361380281,0.7,192.22,192.19,10.87647521]
[1760361380474,26.70671256,192.24,192.19,10.87647521]
[1760361380783,0.7,192.23,192.19,10.87647521]
[1760361380958,0.7,192.22,192.17,16.07994169]
[1760361381553,0.7,192.22,192.17,29.08925635]
[1760361381971,21.5,192.24,192.17,29.08925635]
[1760361382460,20.8,192.24,192.17,29.08925635]
[1760361382656,0.11209251,192.27,192.17,55.10788568]
[1760361383070,0.11209251,192.27,192.17,44.23141047]
[1760361383269,0.11209251,192.27,192.19,10.87647521]
[1760361383466,0.11209251,192.27,192.21,10.87647521]
[1760361383989,0.11209251,192.27,192.23,10.87647521]
[1760361384173,0.10127858,192.28,192.25,10.87647521]
[1760361384359,0.10127858,192.28,192.2,40.79999999]
[1760361384690,0.1124923,192.29,192.21,10.87647521]
[1760361384987,0.1124923,192.29,192.27,10.87647521]
[1760361385287,0.10562494,192.31,192.29,10.87647521]
[1760361385863,0.09363955,192.32,192.29,10.87647521]
[1760361386474,0.09363955,192.32,192.29,9.42]
[1760361386790,0.09363955,192.32,192.27,10.87647521]
[1760361386970,0.09363955,192.32,192.29,29.07814976]
[1760361387170,0.09363955,192.32,192.29,18.20167455]
[1760361387375,0.09363955,192.32,192.3,20.29647521]
[1760361387884,0.09363955,192.32,192.3,10.87647521]
[1760361388983,0.09363955,192.32,192.31,5.1999376]
[1760361389291,0.79363955,192.32,192.31,5.1999376]
[1760361390587,0.09363955,192.32,192.31,5.1999376]
[1760361392977,0.6495531,192.44,192.31,5.1999376]
[1760361393295,0.7,192.38,192.32,10.87647521]
[1760361393491,0.7,192.41,192.33,10.87647521]
[1760361393678,0.7,192.41,192.33,20.29647521]
[1760361394078,0.7,192.4,192.32,20.29647521]
[1760361394595,0.7,192.33,192.3,5.20018907]
[1760361394778,5.90671256,192.36,192.31,5.1999376]
[1760361394779,0.7,192.32,192.31,5.1999376]
[1760361395881,20.8,192.36,192.32,10.87647521]
[1760361396101,0.8139229,192.34,192.32,10.87647521]
[1760361396396,0.7,192.33,192.32,10.87647521]
[1760361396909,0.1139229,192.34,192.32,16.07614243]
[1760361397594,0.7,192.41,192.34,10.87647521]
[1760361398101,0.7,192.41,192.33,10.87647521]
[1760361398394,0.7,192.41,192.33,20.29647521]
[1760361398594,0.10434484,192.34,192.33,20.29647521]
[1760361398783,0.10613876,192.35,192.33,20.29647521]
[1760361398980,0.10613876,192.35,192.34,5.19912654]
[1760361399180,0.10613876,192.35,192.34,25.49560175]
[1760361399582,0.10613876,192.35,192.34,16.07560175]
[1760361399780,0.80613876,192.35,192.34,16.07560175]
[1760361400372,0.80613876,192.35,192.34,10.87647521]
[1760361400898,0.80613876,192.35,192.28,10.87647521]
[1760361401275,0.80613876,192.35,192.27,10.87647521]
[1760361401475,0.10613876,192.35,192.28,9.42]
[1760361401689,0.10613876,192.35,192.27,10.87647521]
[1760361402000,0.10613876,192.35,192.28,9.42]
[1760361402301,0.10613876,192.35,192.26,44.21096429]
[1760361402302,0.10178931,192.36,192.31,10.87647521]
[1760361402479,0.10047785,192.37,192.33,10.87647521]
[1760361402679,0.10047785,192.37,192.35,10.87647521]
[1760361403000,0.10047785,192.37,192.35,20.29647521]
[1760361403178,0.10047785,192.37,192.36,20.29647521]
[1760361403378,0.10047785,192.37,192.36,10.87647521]
[1760361405179,0.10047785,192.37,192.36,16.07506119]
[1760361405379,0.10047785,192.37,192.36,24.76976289]
[1760361405983,0.09420097,192.38,192.37,19.57117691]
[1760361406195,0.09420097,192.38,192.37,28.99117691]
[1760361406391,0.10547043,192.39,192.38,19.57117691]
[1760361407296,0.10547043,192.39,192.38,16.07452074]
[1760361407297,0.78547043,192.39,192.38,16.07452074]
[1760361407496,0.10547043,192.39,192.38,24.76922244]
[1760361407812,0.78547043,192.39,192.35,10.87647521]
[1760361408025,0.10547043,192.39,192.38,8.6947017]
[1760361408807,0.10547043,192.39,192.38,19.57117691]
[1760361409179,0.75547043,192.39,192.38,19.57117691]